Cogmind - Beta 13 @@@ ROGUE MODE // 2024.03.24 @ 18:36:26 Player: Darsidian Result: Destroyed by as-74048 with Assembled Heavy Rifle Performance ------------- Evolutions (0) 0 Regions Visited (4) 800 Robots Destroyed (19) 95 Value Destroyed (291) 291 Prototype IDs (0) 0 Alien Tech Used (0) 0 Bonus (0) 0 TOTAL SCORE: 1186 Bonus ------- None Cogmind --------- Core Integrity 0/250 Matter 249/300 Energy 100/100 System Corruption 2% Temperature Warm (137) Movement Core (350) Ox6 Location -9/Mines Parts ------- > --- POWER (1) -------- (None) > --- PROPULSION (2) --- (None) > --- UTILITY (2) ------ Large Storage Unit > --- WEAPON (2) ------- (None) > --- INVENTORY (15) --- Huge Storage Unit High-capacity Matter Pod (43) Signal Interpreter Autogun Autogun Flak Cannon Rocket Launcher Peak State ------------ > --- POWER ------------ Ion Engine > --- PROPULSION ------- Light Treads Light Treads > --- UTILITY ---------- Small Storage Unit Seismic Detector > --- WEAPON ----------- Field Laser Flak Cannon > --- INVENTORY -------- Light Treads Huge Storage Unit High-capacity Matter Pod Signal Interpreter Autogun Autogun Rocket Launcher Missile Launcher [Rating: 12] Favorites ----------- Power Ion Engine Engine Ion Engine Propulsion Light Treads Treads Light Treads Leg Aluminum Leg Utility Seismic Detector Device Seismic Detector Storage Small Storage Unit Processor Targeting Computer Weapon Field Laser Energy Gun Field Laser Ballistic Gun Assault Rifle Ballistic Cannon Flak Cannon Launcher Missile Launcher Special Weapon Mining Laser Build | -11 -10 -10 -10 -9 ------- Run | Yrd Mat Min Exi Min Slots Evolved . | . . . . . Power . | . . . . . Propulsion . | . . . . . Utility . | . . . . . Weapon . | . . . . . Parts Attached 27 | 7 14 2 1 3 Power 2 | 1 1 . . . Engine 2 | 1 1 . . . Core . | . . . . . Reactor . | . . . . . Propulsion 5 | 2 1 . . 2 Treads 4 | 2 1 . . 1 Leg 1 | . . . . 1 Wheel . | . . . . . Hover . | . . . . . Flight . | . . . . . Utility 10 | 2 7 . 1 . Device 2 | 1 1 . . . Storage 6 | 1 4 . 1 . Processor 2 | . 2 . . . Hackware . | . . . . . Protection . | . . . . . Artifact . | . . . . . Weapon 10 | 2 5 2 . 1 Energy Gun 2 | 1 . 1 . . Energy Cannon . | . . . . . Ballistic Gun 5 | 1 4 . . . Ballistic Cannon 1 | . . 1 . . Launcher 1 | . . . . 1 Special Weapon 1 | . 1 . . . Impact Weapon . | . . . . . Slashing Weapon . | . . . . . Piercing Weapon . | . . . . . Special Melee Weapon . | . . . . . Unidentified Prototypes . | . . . . . Parts Lost 9 | . 1 . . 8 Power 2 | . 1 . . 1 Propulsion 4 | . . . . 4 Utility 1 | . . . . 1 Weapon 2 | . . . . 2 Highest Loss Streak 8 | . 1 . . 8 To Critical Strikes . | . . . . . Average Slot Usage (%) 98 | . 99 99 100 81 Engine 13 | . 13 14 14 10 Treads 27 | . 28 28 28 24 Device 10 | . 5 14 14 8 Storage 14 | . 14 14 14 14 Processor 2 | . 8 . . . Energy Gun 10 | . 7 9 14 12 Ballistic Gun 8 | . 18 9 . . Ballistic Cannon 7 | . . 9 14 8 Naked Turns . | . . . . . Heaviest Build 89 | 13 89 20 35 35 Greatest Support 40 | 40 40 40 40 40 Greatest Overweight (x) 6 | . 2 . . 6 Average Overweight (x) . | . . . . . Largest Inventory Capacity 25 | 8 25 8 15 15 Average Capacity 9 | 6 9 8 11 15 Most Carried 9 | 1 9 8 8 8 Average Carried 7 | . 6 7 8 7 Final Capacity 15 | 8 8 8 15 15 Final Carried 8 | 1 8 8 8 7 Class Distribution -------------------- 100% | Mutant Dominant Class ---------------- Mutant | -10/Materials Mutant | -10/Mines Mutant | -10/Exiles Mutant | -9/Mines Resources | -11 -10 -10 -10 -9 ----------- Run | Yrd Mat Min Exi Min Matter Collected 602 | 238 266 68 . 30 Remotely . | . . . . . Salvage Created 463 | 53 373 . . 37 Parts 38 | 7 31 . . . Haulers Intercepted . | . . . . . Recyclers Shooed . | . . . . . Parts Field Recycled . | . . . . . Retrieved Matter . | . . . . . Parts Self-Destructed . | . . . . . Prevented . | . . . . . Kills | -11 -10 -10 -10 -9 ------- Run | Yrd Mat Min Exi Min Combat Hostiles Destroyed 14 | . 10 . . 4 Guns 10 | . 10 . . . Cannons 2 | . . . . 2 AOE 2 | . . . . 2 Classes Destroyed 8 | 2 4 . . 2 Worker 4 | 2 2 . . . Builder 1 | . 1 . . . Tunneler 1 | 1 . . . . Watcher 2 | . 2 . . . Swarmer 6 | . 6 . . . Grunt 4 | . 4 . . . Duelist 1 | . . . . 1 Assembled 3 | . . . . 3 Best Kill Streak 8 | 2 8 . . 4 Combat Bots Only 5 | . 5 . . 4 Max Kills in Single Turn 2 | 1 1 . . 2 Gunslinging . | . . . . . Exploded 2 | . . . . 2 Melee . | . . . . . Uniques/NPCs Destroyed . | . . . . . Combat | -11 -10 -10 -10 -9 -------- Run | Yrd Mat Min Exi Min Hostile Shots Fired 86 | . 50 . . 36 Missed 16 | . 9 . . 7 Damage Taken 1171 | . 380 . . 791 Core 259 | . 79 . . 180 Absorbed by Shields . | . . . . . Core Remaining (%) 100 | 100 . . . . Volleys Fired 52 | 4 40 . . 8 Largest 2 | 2 2 . . 2 Hottest 107 | 70 100 . . 107 Shots Fired 100 | 8 79 . . 13 Gun 91 | 8 78 . . 5 Cannon 7 | . . . . 7 Launcher 1 | . . . . 1 Special 1 | . 1 . . . Kinetic 51 | 4 40 . . 7 Thermal 48 | 4 39 . . 5 Explosive 1 | . . . . 1 Electromagnetic . | . . . . . Robot Hit Streak 8 | 6 8 . . 5 Robot Miss Streak 5 | 1 5 . . 5 Penetration Max . | . . . . . Secondary Targets 3 | . 3 . . . Max Gunslinging Chain 1 | . 1 . . . Shots Hit Robots 60 | 7 43 . . 10 Core Hits 35 | 3 20 . . 12 Critical Kills 1 | . 1 . . . Critical Parts Destroyed . | . . . . . Critical Strikes 4 | 2 2 . . . Burn 3 | 2 1 . . . Destroy 1 | . 1 . . . Melee Attacks . | . . . . . Impact . | . . . . . Slashing . | . . . . . Piercing . | . . . . . Sneak Attacks . | . . . . . Combat Hostiles . | . . . . . Follow-up Attacks . | . . . . . Damage Inflicted 943 | 85 534 . . 324 Guns 655 | 85 534 . . 36 Cannons 134 | . . . . 134 Explosions 154 | . . . . 154 Melee . | . . . . . Ramming . | . . . . . Kinetic 453 | 48 271 . . 134 Thermal 336 | 37 263 . . 36 Explosive 154 | . . . . 154 Electromagnetic . | . . . . . Impact . | . . . . . Slashing . | . . . . . Piercing . | . . . . . Highest Corruption 2 | . . . . 2 Average Corruption 2 | . . . . 2 Corruption Purged . | . . . . . Corruption Blocked . | . . . . . Effects 1 | . . . . 1 Heat Flow Errors 1 | . . . . 1 Overload Shots . | . . . . . Overflow Damage . | . . . . . Projectiles . | . . . . . Explosions . | . . . . . Melee . | . . . . . Knockbacks 8 | . . . . 8 Impact . | . . . . . Kinetic 5 | . . . . 5 Secondary 3 | . . . . 3 Self-Inflicted Damage 50 | . . . . 50 Shots 1 | . . . . 1 Rammed . | . . . . . Targets Rammed . | . . . . . Kicked . | . . . . . Crushed . | . . . . . Highest Temperature 225 | 18 99 . . 225 Average Temperature 50 | 8 33 . . 122 Received Heat Transfer 122 | . 84 . . 38 Siege Activations . | . . . . . Robots Corrupted . | . . . . . Combat Hostiles . | . . . . . Parts Fried . | . . . . . Impact Corruptions . | . . . . . Robots Melted . | . . . . . Combat Hostiles . | . . . . . Parts Melted 6 | 1 5 . . . Heat Transferred 1184 | 259 851 . . 74 Parts Sabotaged . | . . . . . Parts Stolen . | . . . . . Parts Stripped . | . . . . . Power Chain Reactions . | . . . . . Alert | -11 -10 -10 -10 -9 ------- Run | Yrd Mat Min Exi Min Peak Influence 283 | 15 283 34 . 34 Initial 34 | . 9 34 . . Average 65 | 2 98 32 . 12 Maximum Alert Level 1 | . 1 . . . Low Security (%) 92 | 100 86 100 . 100 Level 1 7 | . 13 . . . Level 2 . | . . . . . Level 3 . | . . . . . Level 4 . | . . . . . Level 5 . | . . . . . High Security . | . . . . . Max Security . | . . . . . Squads Dispatched 3 | . 2 1 . . Investigation 2 | . 1 1 . . Extermination . | . . . . . Reinforcement 1 | . 1 . . . Assault . | . . . . . Garrison . | . . . . . Intercept . | . . . . . Searches Triggered . | . . . . . Construction Impeded . | . . . . . Haulers Reinforced . | . . . . . Active Scanning Responses . | . . . . . Cargo Convoy Interrupts . | . . . . . Stealth | -11 -10 -10 -10 -9 --------- Run | Yrd Mat Min Exi Min Distress Signals . | . . . . . Communications Jammed . | . . . . . Distress Signals . | . . . . . Times Spotted 38 | . 15 . . 23 Peak Tracking Total 11 | . 4 . . 11 Tactical Retreats . | . . . . . Traps | -11 -10 -10 -10 -9 ------- Run | Yrd Mat Min Exi Min Traps Triggered 1 | . 1 . . . Indirectly . | . . . . . Trap Hack Attempts . | . . . . . Triggered . | . . . . . Disarmed . | . . . . . Reprogrammed . | . . . . . Reused . | . . . . . Traps Extracted . | . . . . . Installed . | . . . . . Triggered . | . . . . . Machines | -11 -10 -10 -10 -9 ---------- Run | Yrd Mat Min Exi Min Machines Disabled . | . . . . . Max in Single Turn . | . . . . . Machines Repaired . | . . . . . Machines Dismantled . | . . . . . Machines Sabotaged . | . . . . . Overloaded Fab Kills . | . . . . . Hacking | -11 -10 -10 -10 -9 --------- Run | Yrd Mat Min Exi Min Machines Accessed 7 | . 3 1 3 . Terminals 3 | . 3 . . . Fabricators . | . . . . . Repair Stations . | . . . . . Recycling Units . | . . . . . Scanalyzers . | . . . . . Garrison Access . | . . . . . Total Hacks 11 | . 7 1 3 . Successful 8 | . 4 1 3 . Failed 3 | . 3 . . . Catastrophic . | . . . . . Database Lockouts . | . . . . . Manual 5 | . 5 . . . Terminals 7 | . 7 . . . Fabricators . | . . . . . Repair Stations . | . . . . . Recycling Units . | . . . . . Scanalyzers . | . . . . . Garrison Access . | . . . . . Terminal Hacks 5 | . 1 1 3 . Record 3 | . . . 3 . Open Door 1 | . . 1 . . Zone Layout 1 | . 1 . . . Fabricator Hacks . | . . . . . Repair Station Hacks . | . . . . . Recycling Unit Hacks . | . . . . . Scanalyzer . | . . . . . Garrison Access Hacks . | . . . . . Unauthorized Hacks 3 | . 3 . . . Terminals 3 | . 3 . . . Botnet 3 | . 3 . . . Fabricators . | . . . . . Repair Stations . | . . . . . Recycling Units . | . . . . . Scanalyzers . | . . . . . Garrison Access . | . . . . . Data Cores Recovered . | . . . . . Used . | . . . . . Hacking Detections 2 | . 2 . . . Full Trace Events . | . . . . . Feedback Events . | . . . . . Feedback Blocked . | . . . . . Robot Schematics Acquired . | . . . . . Robots Built . | . . . . . Authchips . | . . . . . Time . | . . . . . Total Robot Build Rating . | . . . . . Part Schematics Acquired . | . . . . . Parts Built . | . . . . . Authchips . | . . . . . Time . | . . . . . Total Part Build Rating . | . . . . . Parts Repaired . | . . . . . Time . | . . . . . Parts Recycled . | . . . . . Recycled Matter . | . . . . . Retrieved Matter . | . . . . . Retrieved Components . | . . . . . Parts Scanalyzed . | . . . . . Part Schematics Acquired . | . . . . . Parts Damaged . | . . . . . Bothacking | -11 -10 -10 -10 -9 ------------ Run | Yrd Mat Min Exi Min Used RIF Installer . | . . . . . Robots Hacked . | . . . . . Non-combat . | . . . . . Combat . | . . . . . Robot Hacks Applied . | . . . . . Relay Couplers Released . | . . . . . Fabnet Peak Effective % . | . . . . . Robots Rewired . | . . . . . Allies Hacked . | . . . . . Hacks Repelled . | . . . . . Allies | -11 -10 -10 -10 -9 -------- Run | Yrd Mat Min Exi Min Total Allies . | . . . . . Largest Group . | . . . . . Highest-Rated Group . | . . . . . Highest-Rated Ally . | . . . . . Total Orders . | . . . . . Ally Attacks . | . . . . . Total Damage . | . . . . . Kills . | . . . . . Allies Corrupted . | . . . . . Allies Melted . | . . . . . Intel | -11 -10 -10 -10 -9 ------- Run | Yrd Mat Min Exi Min Robot Analysis Total . | . . . . . Derelict Logs Recovered 1 | . . 1 . . Drone Launches . | . . . . . Drone Recoveries . | . . . . . Exploration | -11 -10 -10 -10 -9 ------------- Run | Yrd Mat Min Exi Min Turns Passed 2207 | 114 752 416 856 69 Spaces Moved 1224 | 60 349 257 535 23 Core 5 | 4 . . . 1 Treads 1218 | 56 349 257 535 21 Legs 1 | . . . . 1 Wheels . | . . . . . Hover . | . . . . . Flight . | . . . . . Fastest Speed 50 | 50 160 160 160 160 Average Speed 161 | 152 165 160 160 183 Slowest Speed 350 | 160 320 160 160 350 Overloaded Moves . | . . . . . Propulsion Burnouts . | . . . . . Robots Hopped . | . . . . . Cave-ins Triggered . | . . . . . Exploration Rate (%) 41 | 5 42 53 91 14 Regions Visited 4 Branch Regions 3 Pre-discovered Areas . | . . . . . Known Exits Taken . | . . . . . Unknown Exits Taken 4 | 1 1 1 1 . Scrap Searched . | . . . . . Spaces Dug 1 | . 1 . . . Terrain Destroyed 17 | . 1 . . 16 Melee . | . . . . . Projectile 1 | . 1 . . . AOE 16 | . . . . 16 Terrain Rammed . | . . . . . Walls Destroyed . | . . . . . Machines Disabled . | . . . . . Actions | -11 -10 -10 -10 -9 --------- Run | Yrd Mat Min Exi Min Total 1349 | 71 443 263 536 36 Wait 17 | . 15 . . 2 Move 1220 | 59 348 256 534 23 Hop . | . . . . . Pick Up 17 | 1 14 2 . . Fast Attach 15 | 7 6 1 . 1 Attach 1 | . . . . 1 Detach 1 | . 1 . . . Swap 11 | . 8 1 1 1 Drop 15 | . 11 3 1 . Fire 52 | 4 40 . . 8 Melee . | . . . . . Ram . | . . . . . Kick . | . . . . . Crush . | . . . . . Escape Stasis . | . . . . . Rewire . | . . . . . Trap . | . . . . . Miscellaneous . | . . . . . Route ------- -11/Scrapyard -10/Materials -10/Mines -10/Exiles (discovered 2 exits: [*Min x2]) -9/Mines History --------- Turn | Location | Event 3 | -11/Scrapyard | Discovered new exit (range 15) 115 | -11/Scrapyard | Entered Materials 317 | -10/Materials | Build established: Mutant 577 | -10/Materials | Discovered new exit (range 17) 867 | -10/Materials | Entered Mines 919 | -10/Mines | Met a Derelict bent on vengeance 988 | -10/Mines | Met a Derelict shopkeep closing up shop 1204 | -10/Mines | Deemed a non-threat by the Exiles lab entrance 1204 | -10/Mines | Discovered new exit (range 5) 1283 | -10/Mines | Entered Exiles 1283 | -10/Exiles | Found Exiles lab abandoned 1306 | -10/Exiles | Discovered new exit (range 15) 1761 | -10/Exiles | Discovered new exit (range 14) 2139 | -10/Exiles | Entered Mines 2140 | -9/Mines | Assembled infested the area 2191 | -9/Mines | Core integrity fell below 50% 2201 | -9/Mines | Core integrity fell below 20% 2208 | -9/Mines | Destroyed by as-74048 with Assembled Heavy Rifle Last Messages --------------- 02186_ Ion Engine destroyed. 02186_ D-53 Grenadier destroyed. 02188_ The unstable cave ceiling collapses. 02192_ U-05 Engineer lays Concrete. 02192_ as-38932 destroyed. 02192_ as-57198 destroyed. 02192_ Acquired Aluminum Leg. 02193_ U-05 Engineer lays Concrete. 02194_ Lgt. Treads destroyed. 02194_ Field Laser destroyed. 02194_ as-11826 destroyed. 02195_ U-05 Engineer lays Concrete. 02198_ The unstable cave ceiling collapses. 02198_ 8 Matter crushed. 02198_ R-06 Scavenger collects Cmb. Airjet. 02200_ Aluminum Leg destroyed. 02202_ D-53 Grenadier destroyed. 02204_ Lgt. Treads destroyed. 02206_ System corrupted: Heat flow error (+187). 02206_ The unstable cave ceiling collapses. Map ----- +----------------------------------------------------+ | ??????????????????????????????????????????????? | | ??????????????????????????????????????????????? | | ??????????????????????????????????????????????? | | ??????????????????????????????????????????????? | | ??????????????????????????????????????????????? | | ??????????????????????????????????????????????? | | ??????????????????????????????????????????????? | | ??????????????????????????????????????????????? | | ??????????????????????????????????????????????? | | ??????????????????????????????????????????????? | | ??????????????????????????????????????????????? | | ??????????????????????????????????????????????? | | ??????????????????????????????????????????????? | | ??????????????????????????????????????????????? | | ??????????????????????????????????????????????? | | ??????????????????????????????????????????????? | | ??????????????????????????????????????????????? | | ??????????????????????????????????????????????? | | ??????????????????????????????????????????????? | | ?????????????#????????????????????????????????? | | ?????????????# ?????????####??????????????????? | | ????????????##"#???????## ####???????????????? | | ???????????##"%"#?????## ????????????????? | | ???????????# " ##???# ?????????????????? | | ???????????# #### #????#?????????????? | | ????????????# ## @ #### #?????????????? | | ?????????????# a #?????????????? | | ??????????????# a ## #????????? | | ??????????????# a #????##??????????? | | ??????????????## #????????????????? | | ???????????????# % #????????????? | | ???????????????## % ##????????????? | | ????????????????# # #?????????????? | | ????????????????# #????????????? | | ???????????????# ???????????? | | ???????????????## ?????????? | | ????????????????# # # # ????????? | | ????????????????## #" ????????? | | ????????????????# ### ####????????? | | ????????????????# ##?? #???????????? | | ????????????????# # # ??? ??????????? | | ????????????????## # # ## ??? ??????????? | | ?????????????????## ## ? ??????????????? | | ??????????????????## ####? ??????????????? | | ???????????????????# #?????"???????????????? | | ???????????????????# ##?????????????????????? | | ???????????????????# #??????????????????????? | | ???????????????????# ##??????????????????????? | | ???????????????????####???????????????????????? | | ??????????????????????????????????????????????? | +----------------------------------------------------+ Best States ------------- Heat Dissipation 25 Energy Generation 10 Energy Capacity 250 Matter Stores 300 Matter Capacity 300 Sight Range 18 Terrain Scan Density 10 Evasion (%) 40 Targeting Accuracy 5 Recoil Reduction 2 Item Schematics ----------------- None Robot Schematics ------------------ None Fabricated ------------ Nothing Alien Tech Used ----------------- None Achievements -------------- None Challenges ------------ None Game ------ Seed WeldingSwarmStripper Manual? 0 Play Time 00:20:08 Cumulative 107.6 hours Start 2024.03.24 @ 17:56:50 End 2024.03.24 @ 18:36:26 Sessions 1 Manual Loads 0 Difficulty Rogue Special Mode None Game No. 38 Rogue 38 Adventurer 0 Explorer 0 Win Type - Total 0 Types 0/0/0/0/0/0/0/0/0 Lore% 27 Gallery% 42 Achievement% 35 Wizard Run 0 Options --------- Layout 0 ASCII 0 Keyboard 0 Movement Mouse Keybinds 0 Fullscreen 2 Font 36/Smallcaps Map View 76x50 Zoom Use 0% Tactical HUD 1 Map Filters NONE Filters NONE Steam X RUN: f318d9d6-6020-4464-9705-f3accde0d413